[Event "*** Titled Tuesday Blitz"]
[Site "Chess.com"]
[Date "2018.05.01"]
[Round "3"]
[White "BlackBoarder"]
[Black "Grootneus"]
[Result "1/2-1/2"]
[WhiteElo "2223"]
[BlackElo "2132"]
[TimeControl "180+2"]
[EndTime "13:41:56 PDT"]
[Termination "Game drawn by agreement"]

1. e4 {[%clk 0:03:01.9]} 1... c5 {[%clk 0:02:59.7]} 2. Nf3 {[%clk 0:03:01.8]}
2... Nc6 {[%clk 0:03:01.2]} 3. Bb5 {[%clk 0:03:02.2]} 3... Nf6 {[%clk 0:02:57]}
4. Bxc6 {[%clk 0:02:41.4]} 4... dxc6 {[%clk 0:02:56.1]} 5. d3 {[%clk 0:02:41.6]}
5... Bg4 {[%clk 0:02:55]} 6. h3 {[%clk 0:02:41.1]} 6... Bxf3 {[%clk 0:02:54.9]}
7. Qxf3 {[%clk 0:02:43]} 7... e5 {[%clk 0:02:56.1]} 8. O-O {[%clk 0:02:37.9]}
8... Be7 {[%clk 0:02:54.7]} 9. Qg3 {[%clk 0:02:08.9]} 9... Qd6 {[%clk
0:02:47.4]} 10. Nd2 {[%clk 0:01:45.5]} 10... O-O {[%clk 0:02:42.2]} 11. Nc4
{[%clk 0:01:45.6]} 11... Qd8 {[%clk 0:02:09]} 12. Qxe5 {[%clk 0:01:33.9]} 12...
Nd7 {[%clk 0:02:08.3]} 13. Qg3 {[%clk 0:01:29.5]} 13... Bf6 {[%clk 0:02:09.3]}
14. e5 {[%clk 0:01:08.7]} 14... Bh4 {[%clk 0:02:09.2]} 15. Qe3 {[%clk
0:01:09.2]} 15... Re8 {[%clk 0:01:56.1]} 16. f4 {[%clk 0:00:52.6]} 16... Nf6
{[%clk 0:01:41.1]} 17. Qxc5 {[%clk 0:00:37.5]} 17... Nd5 {[%clk 0:01:33.5]} 18.
Ne3 {[%clk 0:00:22.3]} 18... Be7 {[%clk 0:01:12.8]} 19. Qd4 {[%clk 0:00:16.5]}
19... Qb6 {[%clk 0:01:07.3]} 20. Qxb6 {[%clk 0:00:16]} 20... Nxb6 {[%clk
0:01:09.2]} 21. d4 {[%clk 0:00:15]} 21... Rad8 {[%clk 0:01:07]} 22. c3 {[%clk
0:00:16.1]} 22... c5 {[%clk 0:01:08.3]} 23. Rd1 {[%clk 0:00:17]} 23... f6 {[%clk
0:00:57.8]} 24. e6 {[%clk 0:00:11.2]} 24... Nd5 {[%clk 0:00:58.9]} 25. Nxd5
{[%clk 0:00:08.8]} 25... Rxd5 {[%clk 0:01:00.8]} 26. Be3 {[%clk 0:00:09.4]}
26... c4 {[%clk 0:01:00.2]} 27. g4 {[%clk 0:00:08.8]} 27... f5 {[%clk
0:00:59.7]} 28. Bf2 {[%clk 0:00:07.2]} 28... Red8 {[%clk 0:00:56]} 29. Re1
{[%clk 0:00:08.1]} 29... g6 {[%clk 0:00:55.5]} 30. Re2 {[%clk 0:00:08.8]} 30...
R8d6 {[%clk 0:00:51.8]} 31. Rae1 {[%clk 0:00:10.1]} 31... Kg7 {[%clk 0:00:51.6]}
32. Re5 {[%clk 0:00:10.9]} 32... Kf6 {[%clk 0:00:51.9]} 33. g5+ {[%clk
0:00:09.6]} 33... Kg7 {[%clk 0:00:52.5]} 34. Rxd5 {[%clk 0:00:10]} 34... Rxd5
{[%clk 0:00:54.1]} 35. Re5 {[%clk 0:00:10]} 35... Rd6 {[%clk 0:00:52.7]} 36. d5
{[%clk 0:00:09.3]} 36... Ra6 {[%clk 0:00:48.4]} 37. a3 {[%clk 0:00:09.1]} 37...
Kf8 {[%clk 0:00:48.1]} 38. Bg3 {[%clk 0:00:07.5]} 38... Rb6 {[%clk 0:00:37.7]}
39. Re2 {[%clk 0:00:07.3]} 39... Ke8 {[%clk 0:00:34.6]} 40. Kg2 {[%clk
0:00:08.1]} 40... Kd8 {[%clk 0:00:29.1]} 41. Kf3 {[%clk 0:00:09.4]} 41... Kc7
{[%clk 0:00:27.9]} 42. Rd2 {[%clk 0:00:10.6]} 42... Kd6 {[%clk 0:00:26.8]} 43.
Bf2 {[%clk 0:00:11.7]} 43... Rb5 {[%clk 0:00:28.1]} 44. Bd4 {[%clk 0:00:11.1]}
44... Rxd5 {[%clk 0:00:20.6]} 45. Re2 {[%clk 0:00:09.4]} 45... a6 {[%clk
0:00:19.5]} 46. Be5+ {[%clk 0:00:10.1]} 46... Kc6 {[%clk 0:00:20]} 47. Bd4
{[%clk 0:00:10.9]} 47... Rd8 {[%clk 0:00:20.6]} 48. Re5 {[%clk 0:00:09.1]} 48...
Rd5 {[%clk 0:00:20.8]} 49. Re2 {[%clk 0:00:08.2]} 49... Rd8 {[%clk 0:00:21.7]}
50. h4 {[%clk 0:00:09.7]} 50... Bd6 {[%clk 0:00:21.4]} 51. h5 {[%clk 0:00:10]}
51... Re8 {[%clk 0:00:22.1]} 52. hxg6 {[%clk 0:00:08.7]} 52... hxg6 {[%clk
0:00:24]} 53. Rh2 {[%clk 0:00:05.6]} 53... Rxe6 {[%clk 0:00:23.9]} 54. Rh6
{[%clk 0:00:06.7]} 54... Kd5 {[%clk 0:00:18.6]} 55. Bf6 {[%clk 0:00:05.5]} 55...
Re4 {[%clk 0:00:19.2]} 56. Be5 {[%clk 0:00:05]} 56... Bxe5 {[%clk 0:00:14.4]}
57. fxe5 {[%clk 0:00:06.9]} 57... Kxe5 {[%clk 0:00:15.7]} 58. Rxg6 {[%clk
0:00:08.3]} 58... Rf4+ {[%clk 0:00:16.3]} 59. Ke3 {[%clk 0:00:09.7]} 59... Re4+
{[%clk 0:00:17.4]} 60. Kf3 {[%clk 0:00:11.1]} 60... Rf4+ {[%clk 0:00:18.5]} 61.
Kg3 {[%clk 0:00:09.7]} 61... Rg4+ {[%clk 0:00:18.4]} 62. Kf3 {[%clk 0:00:07.6]}
62... Rf4+ {[%clk 0:00:19.2]} 63. Ke3 {[%clk 0:00:08.9]} 1/2-1/2

[Event "*** Titled Tuesday Blitz"]
[Site "Chess.com"]
[Date "2018.05.01"]
[Round "3"]
[White "Alohamora11"]
[Black "toad"]
[Result "1/2-1/2"]
[WhiteElo "2110"]
[BlackElo "2207"]
[TimeControl "180+2"]
[EndTime "13:42:13 PDT"]
[Termination "Game drawn by repetition"]

1. e4 {[%clk 0:02:58]} 1... c5 {[%clk 0:03:00.9]} 2. Nf3 {[%clk 0:02:58.4]} 2...
d6 {[%clk 0:03:02.1]} 3. Bb5+ {[%clk 0:02:58.3]} 3... Nd7 {[%clk 0:03:01.8]} 4.
d4 {[%clk 0:02:57.5]} 4... cxd4 {[%clk 0:03:02.7]} 5. Qxd4 {[%clk 0:02:57.1]}
5... a6 {[%clk 0:03:03.9]} 6. Bxd7+ {[%clk 0:02:56.9]} 6... Bxd7 {[%clk
0:03:04.8]} 7. c4 {[%clk 0:02:51]} 7... Nf6 {[%clk 0:02:46.9]} 8. Nc3 {[%clk
0:02:47.4]} 8... e5 {[%clk 0:02:38.9]} 9. Qd3 {[%clk 0:02:46.3]} 9... Be7 {[%clk
0:02:40.3]} 10. Bg5 {[%clk 0:02:43.9]} 10... b5 {[%clk 0:02:15.4]} 11. cxb5
{[%clk 0:02:24.1]} 11... axb5 {[%clk 0:02:15.3]} 12. Bxf6 {[%clk 0:02:18.8]}
12... Bxf6 {[%clk 0:02:02.2]} 13. Qxd6 {[%clk 0:02:14.7]} 13... Qe7 {[%clk
0:01:39.6]} 14. Qxe7+ {[%clk 0:02:11.4]} 14... Bxe7 {[%clk 0:01:40.7]} 15. Nxe5
{[%clk 0:02:05.9]} 15... Be6 {[%clk 0:01:36.1]} 16. O-O {[%clk 0:01:53.5]} 16...
O-O {[%clk 0:01:30.3]} 17. Nc6 {[%clk 0:01:44]} 17... Bc5 {[%clk 0:01:19.2]} 18.
b4 {[%clk 0:01:37.2]} 18... Bb6 {[%clk 0:01:15.2]} 19. Nd5 {[%clk 0:01:33.6]}
19... Ra6 {[%clk 0:00:35.5]} 20. Nxb6 {[%clk 0:00:41.2]} 20... Rxb6 {[%clk
0:00:36.2]} 21. Nd4 {[%clk 0:00:40.8]} 21... Bc4 {[%clk 0:00:36.1]} 22. Rfd1
{[%clk 0:00:38.8]} 22... g6 {[%clk 0:00:35.8]} 23. f3 {[%clk 0:00:39.4]} 23...
Ra8 {[%clk 0:00:29.9]} 24. a3 {[%clk 0:00:37.5]} 24... Rba6 {[%clk 0:00:29.1]}
25. Nc2 {[%clk 0:00:24.4]} 25... Bb3 {[%clk 0:00:29.3]} 26. Rdc1 {[%clk
0:00:25.6]} 26... Rd8 {[%clk 0:00:20.5]} 27. Ne3 {[%clk 0:00:24.3]} 27... Rd3
{[%clk 0:00:18.3]} 28. Re1 {[%clk 0:00:18.7]} 28... Rc6 {[%clk 0:00:16.8]} 29.
Re2 {[%clk 0:00:16]} 29... Rcc3 {[%clk 0:00:14.9]} 30. Kf2 {[%clk 0:00:15]}
30... h5 {[%clk 0:00:13.9]} 31. h4 {[%clk 0:00:11.6]} 31... Kg7 {[%clk
0:00:14.5]} 32. g4 {[%clk 0:00:12.4]} 32... hxg4 {[%clk 0:00:15.1]} 33. fxg4
{[%clk 0:00:14.3]} 33... Be6 {[%clk 0:00:15.3]} 34. h5 {[%clk 0:00:12.9]} 34...
Rd4 {[%clk 0:00:14]} 35. hxg6 {[%clk 0:00:12.7]} 35... Kxg6 {[%clk 0:00:14.6]}
36. Nf5 {[%clk 0:00:10.9]} 36... Rdd3 {[%clk 0:00:13.2]} 37. Rg1 {[%clk
0:00:07.3]} 37... Rxa3 {[%clk 0:00:13.3]} 38. Ne7+ {[%clk 0:00:07.6]} 38... Kf6
{[%clk 0:00:13.7]} 39. Nf5 {[%clk 0:00:07.8]} 39... Rf3+ {[%clk 0:00:14.1]} 40.
Kg2 {[%clk 0:00:07.1]} 40... Bxf5 {[%clk 0:00:14.3]} 41. exf5 {[%clk 0:00:07.6]}
41... Rg3+ {[%clk 0:00:15.3]} 42. Kh2 {[%clk 0:00:08.5]} 42... Rh3+ {[%clk
0:00:16]} 43. Kg2 {[%clk 0:00:09.2]} 43... Rag3+ {[%clk 0:00:17]} 44. Kf2 {[%clk
0:00:10.7]} 44... Rf3+ {[%clk 0:00:16.5]} 45. Ke1 {[%clk 0:00:11.7]} 45... Rb3
{[%clk 0:00:17]} 46. Rc2 {[%clk 0:00:12]} 46... Rxb4 {[%clk 0:00:14.5]} 47. Rc5
{[%clk 0:00:10.4]} 47... Rh2 {[%clk 0:00:14.4]} 48. g5+ {[%clk 0:00:11.4]} 48...
Ke7 {[%clk 0:00:14.1]} 49. f6+ {[%clk 0:00:11.3]} 49... Ke6 {[%clk 0:00:14.3]}
50. Rc1 {[%clk 0:00:10.7]} 50... Rbb2 {[%clk 0:00:14.6]} 51. Ra1 {[%clk
0:00:08.1]} 51... b4 {[%clk 0:00:12.1]} 52. Ra6+ {[%clk 0:00:05.9]} 52... Kf5
{[%clk 0:00:11.3]} 53. Ra5+ {[%clk 0:00:06.6]} 53... Ke4 {[%clk 0:00:12.1]} 54.
Ra1 {[%clk 0:00:06.5]} 54... b3 {[%clk 0:00:12.5]} 55. g6 {[%clk 0:00:07.6]}
55... Rbe2+ {[%clk 0:00:06.5]} 56. Kd1 {[%clk 0:00:08]} 56... b2 {[%clk
0:00:05.8]} 57. Rb1 {[%clk 0:00:07.2]} 57... Rd2+ {[%clk 0:00:05.2]} 58. Ke1
{[%clk 0:00:08.5]} 58... Rhe2+ {[%clk 0:00:07]} 59. Kf1 {[%clk 0:00:10]} 59...
fxg6 {[%clk 0:00:08.4]} 60. f7 {[%clk 0:00:09.4]} 60... Rf2+ {[%clk 0:00:09.6]}
61. Ke1 {[%clk 0:00:10.8]} 61... Rde2+ {[%clk 0:00:11.3]} 62. Kd1 {[%clk
0:00:11.8]} 62... Rd2+ {[%clk 0:00:05.6]} 63. Ke1 {[%clk 0:00:13]} 63... Rde2+
{[%clk 0:00:06.9]} 64. Kd1 {[%clk 0:00:14.4]} 64... Rd2+ {[%clk 0:00:03.3]} 65.
Ke1 {[%clk 0:00:15.8]} 65... Rde2+ {[%clk 0:00:04.8]} 66. Kd1 {[%clk 0:00:17.2]}
66... Rd2+ {[%clk 0:00:06.3]} 1/2-1/2

[Event "*** Titled Tuesday Blitz"]
[Site "Chess.com"]
[Date "2018.05.01"]
[Round "3"]
[White "Yurovskykh_Oleksandr"]
[Black "popov_m"]
[Result "1/2-1/2"]
[WhiteElo "2356"]
[BlackElo "2376"]
[TimeControl "180+2"]
[EndTime "13:42:48 PDT"]
[Termination "Game drawn by agreement"]

1. d4 {[%clk 0:03:01.7]} 1... g6 {[%clk 0:03:01.9]} 2. c4 {[%clk 0:03:02]} 2...
Bg7 {[%clk 0:02:47.7]} 3. e4 {[%clk 0:03:01.3]} 3... d6 {[%clk 0:02:48.7]} 4.
Nc3 {[%clk 0:03:02]} 4... Nf6 {[%clk 0:02:50.2]} 5. Be2 {[%clk 0:03:01.5]} 5...
O-O {[%clk 0:02:51.5]} 6. Bg5 {[%clk 0:03:02.3]} 6... c5 {[%clk 0:02:52.3]} 7.
d5 {[%clk 0:03:02]} 7... e6 {[%clk 0:02:53.8]} 8. Qd2 {[%clk 0:03:02.9]} 8...
exd5 {[%clk 0:02:54.3]} 9. exd5 {[%clk 0:03:04.3]} 9... Qb6 {[%clk 0:02:55.2]}
10. Nf3 {[%clk 0:02:58.2]} 10... Bf5 {[%clk 0:02:55.3]} 11. Nh4 {[%clk
0:02:54.8]} 11... Ne4 {[%clk 0:02:56]} 12. Nxe4 {[%clk 0:02:55.9]} 12... Bxe4
{[%clk 0:02:57.9]} 13. f3 {[%clk 0:02:56.7]} 13... h6 {[%clk 0:02:59]} 14. Bxh6
{[%clk 0:02:43.4]} 14... Qxb2 {[%clk 0:02:59]} 15. Qxb2 {[%clk 0:02:25.5]} 15...
Bxb2 {[%clk 0:02:58.6]} 16. Bxf8 {[%clk 0:02:25]} 16... Kxf8 {[%clk 0:02:51.1]}
17. Kd2 {[%clk 0:02:24.8]} 17... Bxa1 {[%clk 0:02:48.8]} 18. Rxa1 {[%clk
0:02:26.7]} 18... Bf5 {[%clk 0:02:50.3]} 19. Nxf5 {[%clk 0:02:26.3]} 19... gxf5
{[%clk 0:02:52.2]} 20. Bd3 {[%clk 0:02:17.1]} 20... f4 {[%clk 0:02:43.2]} 21.
Re1 {[%clk 0:02:18.4]} 21... Nd7 {[%clk 0:02:37.2]} 22. Re4 {[%clk 0:02:19.2]}
22... Ne5 {[%clk 0:02:34.1]} 23. Rxf4 {[%clk 0:02:18.6]} 23... a6 {[%clk
0:02:28.2]} 24. a4 {[%clk 0:02:12.2]} 24... Rb8 {[%clk 0:01:39.4]} 25. Rh4
{[%clk 0:02:12.1]} 25... Kg7 {[%clk 0:01:37.8]} 26. Rh7+ {[%clk 0:02:11.9]}
26... Kg8 {[%clk 0:01:38.4]} 27. Rh3 {[%clk 0:02:04.4]} 27... b5 {[%clk
0:01:33.2]} 28. cxb5 {[%clk 0:01:39.7]} 28... c4 {[%clk 0:01:32.8]} 29. Be4
{[%clk 0:01:31.1]} 29... axb5 {[%clk 0:01:32.7]} 30. axb5 {[%clk 0:01:31]} 30...
Rxb5 {[%clk 0:01:33.1]} 31. Kc2 {[%clk 0:01:28.7]} 31... Ra5 {[%clk 0:01:09]}
32. f4 {[%clk 0:01:23.3]} 32... Nd7 {[%clk 0:00:57.5]} 33. Rg3+ {[%clk
0:01:07.3]} 33... Kf8 {[%clk 0:00:56.6]} 34. Rc3 {[%clk 0:01:02.4]} 34... Nb6
{[%clk 0:00:49]} 35. h4 {[%clk 0:00:51.1]} 35... Ra2+ {[%clk 0:00:43.7]} 36. Kb1
{[%clk 0:00:48.3]} 36... Re2 {[%clk 0:00:41.2]} 37. Bf3 {[%clk 0:00:45.4]} 37...
Re1+ {[%clk 0:00:41.4]} 38. Kc2 {[%clk 0:00:44]} 38... Rh1 {[%clk 0:00:40.9]}
39. h5 {[%clk 0:00:37.7]} 39... Kg7 {[%clk 0:00:37]} 40. Ra3 {[%clk 0:00:33.2]}
40... Rh4 {[%clk 0:00:14.2]} 41. Ra6 {[%clk 0:00:28.7]} 41... Nc8 {[%clk
0:00:15.2]} 42. g3 {[%clk 0:00:20.9]} 42... Rh3 {[%clk 0:00:12.6]} 43. Bg4
{[%clk 0:00:21.6]} 43... Rh2+ {[%clk 0:00:13.7]} 44. Kc3 {[%clk 0:00:22.8]}
44... Ne7 {[%clk 0:00:14.2]} 45. Rxd6 {[%clk 0:00:23.3]} 45... Rg2 {[%clk
0:00:13.8]} 46. Kxc4 {[%clk 0:00:17.1]} 46... Rxg3 {[%clk 0:00:14.9]} 47. Be2
{[%clk 0:00:16.3]} 47... Nf5 {[%clk 0:00:14.1]} 48. h6+ {[%clk 0:00:14.6]} 48...
Nxh6 {[%clk 0:00:13.1]} 49. Bd3 {[%clk 0:00:14.8]} 49... Ng4 {[%clk 0:00:13]}
50. Rd8 {[%clk 0:00:12.2]} 50... Nf6 {[%clk 0:00:13]} 51. d6 {[%clk 0:00:12.4]}
51... Rg4 {[%clk 0:00:13.3]} 52. Kc5 {[%clk 0:00:09.7]} 52... Rxf4 {[%clk
0:00:13.6]} 53. Bb5 {[%clk 0:00:08]} 53... Rf5+ {[%clk 0:00:13.6]} 54. Kc6
{[%clk 0:00:08.9]} 54... Rf2 {[%clk 0:00:13.5]} 55. Ra8 {[%clk 0:00:07.1]} 55...
Rc2+ {[%clk 0:00:13.9]} 56. Kb7 {[%clk 0:00:06]} 56... Rc5 {[%clk 0:00:14.7]}
57. Kb6 {[%clk 0:00:06.7]} 57... Rd5 {[%clk 0:00:14.6]} 58. Kc6 {[%clk
0:00:06.9]} 58... Rd2 {[%clk 0:00:15.4]} 59. Ra4 {[%clk 0:00:06.4]} 59... Rc2+
{[%clk 0:00:13.4]} 60. Rc4 {[%clk 0:00:05.8]} 60... Rxc4+ {[%clk 0:00:12.1]} 61.
Bxc4 {[%clk 0:00:07.7]} 61... Kf8 {[%clk 0:00:13.5]} 62. Bd3 {[%clk 0:00:09]}
62... Ke8 {[%clk 0:00:13.9]} 63. Bf5 {[%clk 0:00:10.6]} 63... Kd8 {[%clk
0:00:14.9]} 64. Kc5 {[%clk 0:00:11.3]} 64... Nd7+ {[%clk 0:00:15.4]} 65. Kd5
{[%clk 0:00:12.8]} 65... Nf6+ {[%clk 0:00:16.3]} 66. Ke5 {[%clk 0:00:14.2]}
66... Nd7+ {[%clk 0:00:18.2]} 67. Kd5 {[%clk 0:00:15.6]} 67... Nf6+ {[%clk
0:00:19.3]} 68. Kc6 {[%clk 0:00:17.1]} 68... Ke8 {[%clk 0:00:18.5]} 69. Kc7
{[%clk 0:00:17.8]} 69... Kf8 {[%clk 0:00:19.5]} 70. Kd8 {[%clk 0:00:18.5]} 70...
Ng8 {[%clk 0:00:19]} 71. Kc7 {[%clk 0:00:14.9]} 71... Nf6 {[%clk 0:00:19.5]} 72.
Kc6 {[%clk 0:00:15.6]} 72... Ke8 {[%clk 0:00:20.4]} 73. Kc5 {[%clk 0:00:16.7]}
73... Kd8 {[%clk 0:00:21.3]} 74. Kd4 {[%clk 0:00:17.8]} 74... Ne8 {[%clk
0:00:14.8]} 75. Kd5 {[%clk 0:00:11.6]} 75... Nxd6 {[%clk 0:00:14.8]} 76. Kxd6
{[%clk 0:00:13.5]} 76... Ke8 {[%clk 0:00:16.2]} 1/2-1/2

[Event "*** Titled Tuesday Blitz"]
[Site "Chess.com"]
[Date "2018.05.01"]
[Round "3"]
[White "alturas_pacificas"]
[Black "guillembaches"]
[Result "1/2-1/2"]
[WhiteElo "2149"]
[BlackElo "2244"]
[TimeControl "180+2"]
[EndTime "13:43:00 PDT"]
[Termination "Game drawn - insufficient material"]

1. d4 {[%clk 0:03:01.9]} 1... Nf6 {[%clk 0:03:00.3]} 2. Bf4 {[%clk 0:03:01.6]}
2... e6 {[%clk 0:02:59.6]} 3. e3 {[%clk 0:03:02.9]} 3... d5 {[%clk 0:03:00.7]}
4. Nd2 {[%clk 0:03:04.1]} 4... Bd6 {[%clk 0:03:01.7]} 5. Bg3 {[%clk 0:03:05.3]}
5... O-O {[%clk 0:02:59.4]} 6. Ngf3 {[%clk 0:03:06]} 6... c5 {[%clk 0:03:00.2]}
7. c3 {[%clk 0:03:06.3]} 7... Nc6 {[%clk 0:03:00.9]} 8. Bd3 {[%clk 0:03:06.4]}
8... b6 {[%clk 0:02:58.6]} 9. Ne5 {[%clk 0:03:06.4]} 9... Bb7 {[%clk 0:02:56.3]}
10. f4 {[%clk 0:03:07.1]} 10... Ne7 {[%clk 0:02:52]} 11. Qf3 {[%clk 0:03:07.4]}
11... Nf5 {[%clk 0:02:52.9]} 12. Bf2 {[%clk 0:03:07.4]} 12... Be7 {[%clk
0:02:53.9]} 13. Bxf5 {[%clk 0:03:06]} 13... exf5 {[%clk 0:02:53.6]} 14. g4
{[%clk 0:03:07.9]} 14... fxg4 {[%clk 0:02:42]} 15. Nxg4 {[%clk 0:03:08.5]} 15...
cxd4 {[%clk 0:02:36.9]} 16. exd4 {[%clk 0:03:06.2]} 16... Ne4 {[%clk 0:02:33]}
17. O-O-O {[%clk 0:02:54.9]} 17... Rc8 {[%clk 0:02:21.3]} 18. Rhg1 {[%clk
0:02:52.8]} 18... Kh8 {[%clk 0:02:14.4]} 19. Ne5 {[%clk 0:02:34.6]} 19... g6
{[%clk 0:01:45.8]} 20. f5 {[%clk 0:02:30.9]} 20... Kg7 {[%clk 0:01:22]} 21. Be3
{[%clk 0:02:27.5]} 21... Qc7 {[%clk 0:00:57.8]} 22. Qh3 {[%clk 0:02:12.5]} 22...
Nxc3 {[%clk 0:00:51.5]} 23. Bh6+ {[%clk 0:02:12.7]} 23... Kg8 {[%clk 0:00:48.1]}
24. bxc3 {[%clk 0:02:12.6]} 24... Qxc3+ {[%clk 0:00:27.4]} 25. Qxc3 {[%clk
0:02:11.7]} 25... Rxc3+ {[%clk 0:00:29.3]} 26. Kb1 {[%clk 0:01:51.3]} 26... Rfc8
{[%clk 0:00:29.2]} 27. fxg6 {[%clk 0:01:30.2]} 27... fxg6 {[%clk 0:00:24.1]} 28.
Rc1 {[%clk 0:01:31.4]} 28... Ba3 {[%clk 0:00:20.9]} 29. Rxc3 {[%clk 0:01:26.5]}
29... Rxc3 {[%clk 0:00:22.8]} 30. Rf1 {[%clk 0:01:13.8]} 30... Bc8 {[%clk
0:00:22.3]} 31. Nb3 {[%clk 0:00:55.3]} 31... Bf5+ {[%clk 0:00:22.2]} 32. Ka1
{[%clk 0:00:55.5]} 32... Rc2 {[%clk 0:00:23.2]} 33. Bc1 {[%clk 0:00:45.2]} 33...
Bb4 {[%clk 0:00:24.1]} 34. Bb2 {[%clk 0:00:40.4]} 34... Rxh2 {[%clk 0:00:24.1]}
35. Rc1 {[%clk 0:00:41.7]} 35... a5 {[%clk 0:00:22.7]} 36. a3 {[%clk 0:00:42.8]}
36... Bf8 {[%clk 0:00:20.6]} 37. a4 {[%clk 0:00:34.6]} 37... b5 {[%clk
0:00:20.9]} 38. axb5 {[%clk 0:00:33.4]} 38... a4 {[%clk 0:00:22]} 39. Nc5 {[%clk
0:00:34.8]} 39... Bd6 {[%clk 0:00:18.8]} 40. b6 {[%clk 0:00:35.3]} 40... Rh3
{[%clk 0:00:13.9]} 41. b7 {[%clk 0:00:35.2]} 41... a3 {[%clk 0:00:15.1]} 42. Bc3
{[%clk 0:00:35.5]} 42... Rh2 {[%clk 0:00:15.7]} 43. Ned7 {[%clk 0:00:28.3]}
43... Bxd7 {[%clk 0:00:15.1]} 44. Nxd7 {[%clk 0:00:28.7]} 44... a2 {[%clk
0:00:16.1]} 45. b8=Q+ {[%clk 0:00:28.4]} 45... Bxb8 {[%clk 0:00:17.1]} 46. Nxb8
{[%clk 0:00:30.3]} 46... h5 {[%clk 0:00:18.4]} 47. Nd7 {[%clk 0:00:30.7]} 47...
h4 {[%clk 0:00:18.3]} 48. Nf6+ {[%clk 0:00:31.4]} 48... Kf7 {[%clk 0:00:18.4]}
49. Nxd5 {[%clk 0:00:32.7]} 49... h3 {[%clk 0:00:19.7]} 50. Nf4 {[%clk
0:00:30.3]} 50... g5 {[%clk 0:00:19.2]} 51. Nh5 {[%clk 0:00:23.2]} 51... Rg2
{[%clk 0:00:18.3]} 52. d5 {[%clk 0:00:15.8]} 52... Ke7 {[%clk 0:00:19.1]} 53.
Bb4+ {[%clk 0:00:15.9]} 53... Kd7 {[%clk 0:00:20]} 54. d6 {[%clk 0:00:16.2]}
54... h2 {[%clk 0:00:21.1]} 55. Nf6+ {[%clk 0:00:17.1]} 55... Ke6 {[%clk
0:00:21.6]} 56. d7 {[%clk 0:00:16.8]} 56... Rg1 {[%clk 0:00:22.7]} 57. d8=Q
{[%clk 0:00:12.1]} 57... Rxc1+ {[%clk 0:00:23.6]} 58. Kxa2 {[%clk 0:00:13.3]}
58... h1=Q {[%clk 0:00:24.2]} 59. Qe7+ {[%clk 0:00:10.7]} 59... Kf5 {[%clk
0:00:25.3]} 60. Qh7+ {[%clk 0:00:08.7]} 60... Ke6 {[%clk 0:00:23.5]} 61. Qe7+
{[%clk 0:00:08.9]} 61... Kf5 {[%clk 0:00:24]} 62. Qd7+ {[%clk 0:00:07.8]} 62...
Kxf6 {[%clk 0:00:24.2]} 63. Be7+ {[%clk 0:00:08.3]} 63... Ke5 {[%clk 0:00:24.1]}
64. Qd6+ {[%clk 0:00:07.9]} 64... Kf5 {[%clk 0:00:25.3]} 65. Qf6+ {[%clk
0:00:08.2]} 65... Ke4 {[%clk 0:00:26.5]} 66. Qe6+ {[%clk 0:00:06.6]} 66... Kd3
{[%clk 0:00:26.3]} 67. Qb3+ {[%clk 0:00:06.7]} 67... Rc3 {[%clk 0:00:25.9]} 68.
Qb5+ {[%clk 0:00:07.4]} 68... Kc2 {[%clk 0:00:23.3]} 69. Qb2+ {[%clk 0:00:07.1]}
69... Kd3 {[%clk 0:00:24.5]} 70. Qb5+ {[%clk 0:00:08.5]} 70... Kd2 {[%clk
0:00:25.7]} 71. Bb4 {[%clk 0:00:06.6]} 71... Qa8+ {[%clk 0:00:26.5]} 72. Kb2
{[%clk 0:00:07.1]} 72... Qh8 {[%clk 0:00:24.9]} 73. Qc5 {[%clk 0:00:06.7]} 73...
Ke2 {[%clk 0:00:20.1]} 74. Bxc3 {[%clk 0:00:06.9]} 74... Qb8+ {[%clk 0:00:20.9]}
75. Kc2 {[%clk 0:00:07.5]} 75... Qf4 {[%clk 0:00:20.2]} 76. Qb5+ {[%clk
0:00:07.5]} 76... Kf2 {[%clk 0:00:20.5]} 77. Qb6+ {[%clk 0:00:07.5]} 77... Kf3
{[%clk 0:00:21]} 78. Qc6+ {[%clk 0:00:07.5]} 78... Kf2 {[%clk 0:00:22]} 79. Qb6+
{[%clk 0:00:07.6]} 79... Kf1 {[%clk 0:00:23.2]} 80. Qb1+ {[%clk 0:00:07.9]}
80... Kg2 {[%clk 0:00:23.4]} 81. Qd1 {[%clk 0:00:08.7]} 81... g4 {[%clk
0:00:22.3]} 82. Qd2+ {[%clk 0:00:09.1]} 82... Qf2 {[%clk 0:00:23.1]} 83. Qxf2+
{[%clk 0:00:09.1]} 83... Kxf2 {[%clk 0:00:25]} 84. Be5 {[%clk 0:00:10.2]} 84...
g3 {[%clk 0:00:26.1]} 85. Bxg3+ {[%clk 0:00:10.8]} 1/2-1/2